[Event "European Women-ch 2023"]
[Site "Petrovac"]
[Date "2023.03.27"]
[Round "9.12"]
[White "Koridze, Lile"]
[Black "Klek, Hanna Marie"]
[Result "1-0"]
[ECO "E01"]
[WhiteElo "2122"]
[BlackElo "2314"]
[Annotator "TA"]
[PlyCount "203"]
[EventDate "2023.03.15"]
[EventType "swiss"]
[EventCountry "MNE"]
[SourceTitle "playchess.com"]
[Source "ChessBase"]
[SourceQuality "1"]
[TimeControl "40/5400+30:1800+30"]

{[%evp 9,203,39,31,31,21,26,70,18,56,46,42,45,58,45,54,26,56,32,37,21,29,21,22,9,10,16,84,67,151,155,152,145,229,221,256,241,251,243,231,243,239,233,251,52,225,-105,-77,-133,0,-171,-180,-162,-166,-151,0,0,0,0,0,0,0,-52,-56,-30,-25,-67,-58,-110,-29,-25,-31,-158,-22,-14,-22,-23,-15,-120,0,-13,0,0,0,0,0,-8,147,147,155,130,125,117,133,101,153,152,187,193,243,240,314,314,320,306,368,368,278,272,278,278,272,250,268,259,307,300,331,339,415,415,407,396,475,290,781,815,844,814,840,808,898,879,808,760,622,511,511,507,1107,1085,1369,1066,5259,5259,5252,5252,1022,511,511,511,450,283,511,511,511,511,511,511,511,511,496,470,562,508,470,470,456,456,468,461,4830,4695,4744,1491,29944,12801,29984,29985,29985,29985,29985,29986,29988,29989,29989,29990,29991,29990,29990,29989,29989,29990,29990,29991,29991,29988]} 1. d4 {[%emt 0:00:02]} Nf6 {[%emt 0:00:05]} 2. c4 {[%emt 0:00:03]} e6 {[%emt 0:00:07]} 3. Nf3 {[%emt 0:00:03]} d5 {[%emt 0:00:06]} 4. g3 {[%emt 0:00:03]} h6 {[%emt 0:00:07]} 5. Bg2 {[%emt 0:01:25]} Bd6 {[%emt 0:00:12]} 6. O-O {[%emt 0:02:54] E01: Catalan: Early deviations.} O-O {[%emt 0:01:43]} 7. Qc2 {[%emt 0:03:09]} Nc6 {[%emt 0:01:05] [#]} 8. b3 $146 {[%emt 0:02:07]} (8. a3 $14) ({Predecessor:} 8. Nbd2 Re8 9. b3 e5 10. dxe5 Nxe5 11. Bb2 dxc4 12. Bxe5 Bxe5 13. Nxe5 Rxe5 14. Nxc4 {0-1 Dubov,D (2710)-Carlsen,M (2847) DM Carlsen-Dubov blitz 2021 (7)}) 8... b6 {[%emt 0:13:15]} 9. Bb2 {[%emt 0:03:58]} (9. cxd5 Nb4 10. Qd1 exd5 $11) (9. a3 $5 {[%cal Rc4d5]}) 9... Nb4 {[%emt 0:09:36]} 10. Qc1 {[%emt 0:01:13]} c5 {[%emt 0:02:34]} 11. dxc5 {[%emt 0:04:49]} bxc5 {[%emt 0:01:05]} 12. Rd1 {[%emt 0:01:46]} Bb7 {[%emt 0:04:27]} 13. e3 {[%emt 0:02:03]} Qe7 {[%emt 0:04:51]} 14. a3 {[%emt 0:01:51]} Nc6 {[%emt 0:01:17]} 15. cxd5 {[%emt 0:04:05]} (15. Qc2 $5 {[%cal Rc4d5]}) 15... exd5 {[%emt 0:00:11]} 16. Nc3 {[%emt 0:00:43]} Na5 {[%emt 0:04:27]} 17. Qc2 {[%emt 0:00:49]} Rad8 {[%emt 0:02:15]} (17... Rfb8 $11) 18. Nb5 $16 {[%emt 0:05:46]} Bb8 {[%emt 0:01:44]} (18... c4 $14) 19. Bc3 {[%emt 0:01:56] White is more active.} Nc6 {[%emt 0:05:23]} 20. Bxf6 {[%emt 0:00:31]} gxf6 {[%emt 0:00:48]} (20... Qxf6 $16 21. Qxc5 a6) 21. Nh4 $1 $18 {[%emt 0:01:27]} Be5 {[%emt 0:05:01]} 22. Nf5 {[%emt 0:01:10]} Qe6 {[%emt 0:00:16] [#]} 23. Bh3 $1 {[%emt 0:00:20]} Kh8 {[%emt 0:01:38] [#]} 24. Qe2 $1 {[%emt 0:00:56][%cal Oe2h5] Qh5! would be deadly.} Rg8 {[%emt 0:01:59] [#]} (24... Bxa1 $2 25. Qh5 $18) 25. Qh5 {[%emt 0:00:04][%cal Rh5h6]} Rg5 {[%emt 0:03:03]} (25... Rg6 $2 26. Nxh6 Qe8 27. Rac1 $18 (27. Nxf7+ Kg7 $11)) 26. Qxh6+ {[%emt 0:01:45]} Kg8 {[%emt 0:00:07][%cal Og5f5] [#]} 27. Nfd4 {[%emt 0:00:33]} Qe8 $1 $17 {[%emt 0:03:26]} 28. Nf5 {[%emt 0:11:08]} a6 {[%emt 0:03:25]} (28... Bc8 $1 $17 {[%cal Rc8f5]} 29. Rac1 Bxf5 30. Bxf5 Rxf5 31. Rxc5 a6) 29. Nbd6 {[%emt 0:09:41]} Bxd6 $19 {[%emt 0:00:19]} 30. Qxf6 {[%emt 0:01:40]} Rg6 {[%emt 0:03:37]} 31. Nh6+ {[%emt 0:01:53] [#]} Rxh6 $1 {[%emt 0:05:25][%mdl 512]} 32. Qxh6 $11 {[%emt 0:00:04]} Qe5 {[%emt 0:00:31] Against Qg5+} 33. Rac1 {[%emt 0:01:34]} Bf8 {[%emt 0:03:44]} 34. Qh4 {[%emt 0:01:16]} Be7 $36 {[%emt 0:05:21][%mdl 2048] Black has good play.} 35. Qh6 {[%emt 0:00:12]} (35. Qg4+ $11 Kf8 36. Bg2) 35... Rd6 $15 {[%emt 0:03:23]} 36. Qf4 {[%emt 0:00:45]} Qxf4 {[%emt 0:02:14]} 37. gxf4 {[%emt 0:00:11][%cal Oh3g2]} Na5 {[%emt 0:01:28]} 38. Rc3 {[%emt 0:03:49]} (38. b4 $15 cxb4 39. axb4 Rg6+ {[%mdl 64] Discovered Attack} 40. Kf1) 38... d4 {[%emt 0:02:21]} (38... Rb6 $17 39. b4 cxb4 40. axb4 (40. Rc7 $2 Bd6 $19) 40... Rg6+ 41. Kf1 Nc4) 39. exd4 $11 {[%emt 0:00:33]} cxd4 {[%emt 0:00:15]} 40. Rc7 {[%emt 0:00:00]} (40. Rcd3 $15) 40... Bd8 {[%emt 0:00:00] This pair of bishops is nice.} ({Black should play} 40... Bf3 $1 $17 {[%cal Rf3d1]} 41. Rd3 Be4 42. Rg3+ Kf8) 41. Rd7 {[%emt 0:07:14]} Rxd7 {[%emt 0:06:31]} 42. Bxd7 {[%emt 0:00:07]} Bf6 {[%emt 0:05:49]} 43. Ba4 {[%emt 0:04:48]} (43. b4 $1 $11 Nc4 44. Rc1) 43... Bf3 {[%emt 0:03:17]} ({Black should try} 43... Bd5 $1 $17 44. Rb1 d3) 44. Rc1 $1 {[%emt 0:01:18]} d3 {[%emt 0:01:32][%mdl 1024] Black has compensation.} 45. b4 {[%emt 0:00:53]} Nb7 {[%emt 0:05:47] Black wants to play ...Nd6.} 46. Rc7 {[%emt 0:00:44]} Nd8 {[%emt 0:07:10]} 47. Rd7 {[%emt 0:00:47]} Be2 {[%emt 0:02:47]} (47... Be4 $11) 48. f5 $1 $16 {[%emt 0:01:55] Black is now going downhill.} Kg7 {[%emt 0:02:13]} 49. b5 {[%emt 0:00:36]} axb5 {[%emt 0:00:09]} 50. Bxb5 {[%emt 0:00:04]} Bg4 {[%emt 0:01:34]} 51. Bxd3 {[%emt 0:00:52] Be4 is the strong threat.} Nc6 {[%emt 0:00:05] [#]} (51... Bf3 $142) 52. Be4 $1 {[%emt 0:00:43]} Ne5 {[%emt 0:01:23]} 53. Rd5 {[%emt 0:01:09]} Nc4 {[%emt 0:01:22]} (53... Nc6 $142 54. a4 Nd4) 54. a4 $18 {[%emt 0:00:48][%cal Ba3a4,Ba4a5][%mdl 32] Threatens to win with a5.} Nb6 {[%emt 0:00:11] [#]} 55. Rd3 {[%emt 0:00:05] Black must now prevent a5.} Be2 {[%emt 0:00:48]} 56. Rg3+ {[%emt 0:00:09]} Kf8 {[%emt 0:00:14]} 57. a5 {[%emt 0:00:32]} Nc8 {[%emt 0:00:10]} 58. Bb7 {[%emt 0:01:57]} Na7 {[%emt 0:01:10]} 59. a6 {[%emt 0:01:11]} Bb5 {[%emt 0:00:40]} 60. Re3 {[%emt 0:02:27]} Bd4 {[%emt 0:01:44]} 61. Re4 {[%emt 0:02:48]} Bc3 {[%emt 0:00:56]} 62. h4 {[%emt 0:00:46]} Kg7 {[%emt 0:00:06]} 63. h5 {[%emt 0:01:21]} Bf6 {[%emt 0:01:01]} 64. Rg4+ {[%emt 0:01:42]} Kh6 {[%emt 0:00:26]} 65. Bd5 {[%emt 0:00:43]} Kxh5 {[%emt 0:00:45]} 66. Rg8 {[%emt 0:00:20]} (66. Bxf7+ $2 {loses.} Kxg4 67. Bd5 Bxa6 $19) ({Not} 66. Bf3 Kh6 67. Bd5 Bd7 68. Bxf7 Bxf5 $16) 66... Bg5 $2 {[%emt 0:00:35]} (66... Bxa6 67. Bxf7+ Kh4) 67. Bxf7+ {[%emt 0:00:39]} Kg4 {[%emt 0:00:06]} 68. Be6 {[%emt 0:00:30] Strongly threatening f6+.} Kf4 {[%emt 0:00:37]} 69. Rg7 {[%emt 0:00:09]} Bxa6 {[%emt 0:00:38]} 70. Rxa7 {[%emt 0:00:04][%mdl 4096] Endgame KRB-KB} Bd3 {[%emt 0:00:24]} 71. Ra3 {[%emt 0:01:08]} Be4 {[%emt 0:00:38]} 72. Kf1 {[%emt 0:01:18]} Bf3 {[%emt 0:00:28]} 73. Ra5 {[%emt 0:01:04][%cal Of5f6] Hoping for f6!} Bf6 {[%emt 0:00:14]} (73... Bd8 $142 74. Rb5 Kg5) 74. Bd5 {[%emt 0:01:29]} Bd1 {[%emt 0:00:51] Inhibits Ra4+.} 75. Bc4 {[%emt 0:01:19] And now Ra6 would win.} Bc2 {[%emt 0:00:46]} 76. Ra6 {[%emt 0:01:52]} Kxf5 {[%emt 0:00:32]} 77. Ke2 {[%emt 0:00:17]} Bd4 {[%emt 0:01:04]} 78. f3 {[%emt 0:00:57]} Kf4 {[%emt 0:00:28]} 79. Bd3 {[%emt 0:02:20]} Bb3 {[%emt 0:00:13]} 80. Ra8 {[%emt 0:00:07]} Bf6 $2 {[%emt 0:01:13]} (80... Bd5 {was necessary.} 81. Rf8+ Kg3) 81. Rf8 {[%emt 0:00:51]} Ke5 {[%emt 0:00:06] [#]} 82. f4+ $1 {[%emt 0:00:23]} Ke6 {[%emt 0:00:06]} 83. Kf3 {[%emt 0:01:14]} Ke7 {[%emt 0:00:48]} 84. Rb8 {[%emt 0:00:17]} Bd5+ {[%emt 0:00:38]} 85. Be4 {[%emt 0:00:05]} Bc4 {[%emt 0:00:13]} 86. Rb7+ {[%emt 0:00:23]} Ke6 {[%emt 0:00:30]} 87. Rb6+ {[%emt 0:00:55]} Kf7 {[%emt 0:00:30]} 88. f5 {[%emt 0:00:08]} Be5 {[%emt 0:00:24]} 89. Kg4 {[%emt 0:00:34]} Bf6 {[%emt 0:00:46]} (89... Bd4 $142 90. Rb4 Be2+ 91. Kf4 Bf6 92. Bd5+ Kf8) 90. Rb7+ {[%emt 0:00:08]} Kg8 {[%emt 0:00:18]} 91. Rd7 {[%emt 0:00:28] Bd5+ would kill now.} Be2+ {[%emt 0:00:30]} 92. Bf3 {[%emt 0:00:18]} Bb5 {[%emt 0:00:07]} 93. Bd5+ {[%emt 0:00:06] White mates.} Kh8 {[%emt 0:00:05]} 94. Rb7 {[%emt 0:00:45]} Be2+ {[%emt 0:00:08]} 95. Bf3 {[%emt 0:00:04]} Bc4 {[%emt 0:00:08]} 96. Kh5 {[%emt 0:00:08]} Kg8 {[%emt 0:01:32]} 97. Kg6 {[%emt 0:00:13]} Be5 {[%emt 0:00:27]} 98. Re7 {[%emt 0:00:26][%cal Re7e8]} Bd6 {[%emt 0:00:07]} 99. Re8+ {[%emt 0:00:16]} Bf8 {[%emt 0:00:05]} 100. Rd8 {[%emt 0:00:17]} Bf7+ {[%emt 0:01:20]} 101. Kf6 {[%emt 0:00:08]} Bc4 {[%emt 0:00:33]} 102. Bd5+ {[%emt 0:00:12] A cool game by Koridze.   Weighted Error Value: White=0.23 (precise) /Black=0.32} 1-0

[Event "European Women-ch 2023"]
[Site "Petrovac"]
[Date "2023.03.27"]
[Round "9.13"]
[White "Bulmaga, Irina"]
[Black "Unuk, Laura"]
[Result "1/2-1/2"]
[ECO "C45"]
[WhiteElo "2438"]
[BlackElo "2297"]
[Annotator "TA"]
[PlyCount "139"]
[EventDate "2023.03.15"]
[EventType "swiss"]
[EventCountry "MNE"]
[SourceTitle "playchess.com"]
[Source "ChessBase"]
[SourceQuality "1"]
[TimeControl "40/5400+30:1800+30"]

{[%evp 14,139,-8,-22,17,0,0,0,7,14,14,13,27,-5,-10,-13,-9,-10,7,0,-6,-51,-44,-78,-75,-108,-108,-135,-134,-118,-112,-137,-139,-202,-196,-188,-167,-175,-127,-294,-95,-97,-101,-93,-77,-90,-88,-170,-141,-133,-66,-66,-66,-66,-66,-66,-27,-27,-27,-27,-25,-25,-25,-25,-25,-27,-25,-26,-26,-26,-26,-27,-27,-30,-30,-39,-27,-27,-25,-25,-25,-27,-27,-27,-27,-27,-27,-27,-27,-27,-27,-27,-27,-27,-27,-27,-27,-27,-27,-27,-27,-27,-27,-27,-27,-27,-10,-10,-10,-10,-10,-10,-10,-10,-10,-10,-10,-10,-10,-10,0,0,0,0,0,0,0,0]} 1. e4 {[%emt 0:00:04][%cal Be2e4,Be4e5][%mdl 32]} e5 {[%emt 0:00:15]} 2. Nf3 {[%emt 0:00:10]} Nc6 {[%emt 0:00:05]} 3. d4 {[%emt 0:00:09]} exd4 {[%emt 0:00:09]} 4. Nxd4 {[%emt 0:00:07]} Nf6 {[%emt 0:00:23]} 5. Nxc6 {[%emt 0:00:15]} bxc6 {[%emt 0:00:05]} 6. e5 {[%emt 0:00:19]} Qe7 {[%emt 0:00:15]} 7. Qe2 {[%emt 0:00:20]} Nd5 {[%emt 0:00:09]} 8. h4 {[%emt 0:00:19]} d6 {[%emt 0:05:25] C45: Scotch Game.} 9. c4 {[%emt 0:00:18]} Nb6 {[%emt 0:00:33]} 10. exd6 {[%emt 0:00:23]} cxd6 {[%emt 0:00:09][%cal Oe7e6]} 11. Be3 {[%emt 0:00:36]} d5 {[%emt 0:00:53]} 12. Nd2 {[%emt 0:11:35]} dxc4 {[%emt 0:08:46] [#]} 13. Qf3 $146 {[%emt 0:22:02]} (13. g3 $5 {[%cal Rf1g2]}) ({Predecessor:} 13. g3 Be6 14. Bg2 Qc7 15. O-O Be7 16. b3 O-O 17. bxc4 Rad8 18. Rac1 {½-½ Gharamian,T (2586)-Fressinet,L (2625) FRA-ch 94th Chartres 2019 (6)}) 13... Qe6 {[%emt 0:12:31]} ({Resist} 13... Nd5 14. Bxc4 Qd7 15. Bd4 $16) 14. Be2 {[%emt 0:03:05]} Bb4 {[%emt 0:02:02]} 15. O-O {[%emt 0:05:24]} O-O {[%emt 0:17:55]} 16. Rac1 {[%emt 0:04:17][%cal Rd2c4]} Ba6 {[%emt 0:02:47]} 17. Ne4 {[%emt 0:10:57]} Rae8 {[%emt 0:15:05]} 18. Ng5 {[%emt 0:00:24]} Qe7 {[%emt 0:08:35]} 19. Qf5 {[%emt 0:15:53][%csl Gg5][%cal Rf5h7]} g6 {[%emt 0:00:13]} 20. Qf3 {[%emt 0:00:28]} h6 $1 {[%emt 0:10:06]} ({Worse is} 20... f6 21. Nh3 $15) 21. Nh3 {[%emt 0:01:34]} Qxh4 {[%emt 0:00:37] And now ...Nd5 would win.} 22. b3 {[%emt 0:03:52]} Ba3 {[%emt 0:04:41]} 23. Rcd1 {[%emt 0:00:36] [#]} (23. Rc2 $17) 23... Qe4 $1 $19 {[%emt 0:03:32]} 24. Qg3 {[%emt 0:07:38]} Bb2 {[%emt 0:01:14]} 25. Bf3 {[%emt 0:02:04]} Qf5 {[%emt 0:01:54]} (25... Qe5 $19 {Threatens to win with ...Qxg3.} 26. Qxe5 Rxe5) 26. Bxh6 $2 {[%emt 0:04:22] [#]} (26. bxc4 $17 Bxc4 27. Bxh6) 26... cxb3 $2 {[%emt 0:00:22]} (26... c3 $1 $19 {[%cal Rc3c2] and Black stays clearly on top. ...c2! is the strong threat.} 27. Bg4 Qc5) 27. axb3 $17 {[%emt 0:01:56]} Bxf1 {[%emt 0:00:33]} 28. Bxf8 {[%emt 0:00:17]} Bxg2 {[%emt 0:02:21]} 29. Kxg2 {[%emt 0:00:22] Bh6 would be deadly.} Rxf8 {[%emt 0:00:14]} 30. Ng5 {[%emt 0:01:59]} (30. Bxc6 $17 Kg7 31. Qf3) 30... Bf6 {[%emt 0:01:00]} 31. Ne4 {[%emt 0:00:10]} Nd5 {[%emt 0:00:56]} (31... Be5 $17 32. Qg5 Qxg5+ 33. Nxg5 Rc8) 32. Nxf6+ $15 {[%emt 0:01:35]} Qxf6 {[%emt 0:00:11]} 33. Bxd5 {[%emt 0:00:29]} cxd5 {[%emt 0:00:04]} 34. Rxd5 {[%emt 0:00:15][%mdl 4096] Endgame KQR-KQR} Rd8 {[%emt 0:01:24]} 35. Qg5 {[%emt 0:01:54]} Qxg5+ {[%emt 0:01:34]} 36. Rxg5 $11 {[%emt 0:00:02] KR-KR} Rb8 {[%emt 0:00:53]} 37. Ra5 {[%emt 0:00:03]} Rb7 {[%emt 0:00:06]} 38. b4 {[%emt 0:01:13]} Kg7 {[%emt 0:00:19]} 39. Ra6 {[%emt 0:00:28]} Kh6 {[%emt 0:00:41]} 40. Kg3 {[%emt 0:00:00]} Kg5 {[%emt 0:00:00]} 41. Ra5+ {[%emt 0:01:57]} Kf6 {[%emt 0:02:05]} 42. Kf3 {[%emt 0:04:13]} Ke6 {[%emt 0:00:24]} 43. Ke3 {[%emt 0:00:06]} Kd6 {[%emt 0:05:38]} 44. Kd3 {[%emt 0:02:02]} Rxb4 {[%emt 0:05:21] White must now prevent ...Rb7.} 45. Rxa7 {[%emt 0:02:05]} Rf4 {[%emt 0:00:24]} 46. Ke3 {[%emt 0:00:17]} g5 {[%emt 0:00:05]} 47. Ra5 {[%emt 0:00:53]} f6 {[%emt 0:00:09]} 48. Ra6+ {[%emt 0:00:49]} Ke5 {[%emt 0:00:07]} 49. Ra5+ {[%emt 0:00:15]} Ke6 {[%emt 0:00:06]} 50. Rb5 {[%emt 0:02:03]} Kf7 {[%emt 0:00:41]} 51. f3 {[%emt 0:00:15]} Kg6 {[%emt 0:02:01]} 52. Ra5 {[%emt 0:00:25]} Kh5 {[%emt 0:01:14]} 53. Kf2 {[%emt 0:02:35]} Kh4 {[%emt 0:02:54] Strongly threatening ...g4.} 54. Kg2 {[%emt 0:00:11]} Rb4 {[%emt 0:03:03] aiming for ...Rb2+.} 55. Ra2 {[%emt 0:00:03] Prevents Rb2+} f5 {[%emt 0:00:22]} 56. Rc2 {[%emt 0:00:05]} Ra4 {[%emt 0:01:19]} 57. Rb2 {[%emt 0:00:34]} Ra3 {[%emt 0:00:08]} 58. Rb4+ {[%emt 0:00:52]} f4 {[%emt 0:00:26]} 59. Rb2 {[%emt 0:00:05] Wards off Ra2} g4 {[%emt 0:00:38]} 60. fxg4 {[%emt 0:01:21] The position is equal.} Kxg4 {[%emt 0:01:50]} 61. Rc2 $1 {[%emt 0:02:35]} Rg3+ {[%emt 0:00:42]} (61... Rb3 $5 {[%cal Rb3g3]}) 62. Kf2 {[%emt 0:01:49]} Rh3 {[%emt 0:00:05] ( -> ...Rh2+)} 63. Rc8 {[%emt 0:01:48]} Rh2+ {[%emt 0:00:16]} 64. Kg1 $1 {[%emt 0:00:05]} Ra2 {[%emt 0:00:23]} 65. Rc3 {[%emt 0:00:14]} Re2 {[%emt 0:02:54]} 66. Kf1 {[%emt 0:00:28]} Re3 {[%emt 0:00:07]} 67. Rxe3 {[%emt 0:00:27]} fxe3 {[%emt 0:00:03]} 68. Ke2 {[%emt 0:00:11]} Kf4 {[%emt 0:00:03]} 69. Ke1 {[%emt 0:00:17]} e2 {[%emt 0:00:04]} 70. Kxe2 {[%emt 0:00:37] Black had all chances to win.   Weighted Error Value: White=0.13 (very precise) /Black=0.13 (very precise)} 1/2-1/2

[Event "European Women-ch 2023"]
[Site "Petrovac"]
[Date "2023.03.27"]
[Round "9.13"]
[White "Ovod, Evgenija"]
[Black "Mamedjarova, Turkan"]
[Result "1/2-1/2"]
[ECO "C54"]
[WhiteElo "2305"]
[BlackElo "2229"]
[Annotator "TA"]
[PlyCount "52"]
[EventDate "2023.03.15"]
[EventType "swiss"]
[EventCountry "MNE"]
[SourceTitle "playchess.com"]
[Source "ChessBase"]
[SourceQuality "1"]
[TimeControl "40/5400+30:1800+30"]

{[%evp 13,52,15,21,12,12,18,29,29,29,24,77,73,84,79,77,35,29,20,15,15,8,11,34,7,10,10,13,8,9,0,0,0,0,-4,-1,-5,0,0,0,-4,0]} 1. e4 {[%emt 0:00:03]} e5 {[%emt 0:00:07]} 2. Nf3 {[%emt 0:00:05]} Nc6 {[%emt 0:00:14]} 3. Bc4 {[%emt 0:00:06]} Bc5 {[%emt 0:00:22]} 4. O-O {[%emt 0:00:10]} Nf6 {[%emt 0:00:39]} 5. d3 {[%emt 0:00:07]} d6 {[%emt 0:00:08]} 6. c3 {[%emt 0:00:28]} a6 {[%emt 0:00:28]} 7. a4 {[%emt 0:00:16]} O-O {[%emt 0:00:15]} 8. Nbd2 {[%emt 0:00:39][%cal Bb1d2,Bd2f1,Bf1g3][%mdl 32] C54: Giuoco Piano: 4 c3 Nf6, main lines with 5 d4 and 5 d3.} h6 {[%emt 0:02:35]} 9. Re1 {[%emt 0:00:56]} Re8 {[%emt 0:02:10]} 10. Nf1 {[%emt 0:03:02] White has an edge.} Ba7 {[%emt 0:12:47]} 11. Be3 {[%emt 0:06:47] [#]} d5 $146 {[%emt 0:07:11]} (11... Na5 $11 {remains equal.}) ({Predecessor:} 11... Bxe3 12. Nxe3 Be6 13. Bxe6 Rxe6 14. b4 Qd7 15. Qc2 a5 16. b5 Ne7 17. g3 Re8 {1-0 Giri,A (2777)-Matlakov,M (2683) Yasnaya Polyana Tolstoy Memorial rapid 2021 (3)}) 12. exd5 $16 {[%emt 0:11:59]} Nxd5 {[%emt 0:00:15]} 13. Bxa7 {[%emt 0:00:08]} Rxa7 {[%emt 0:01:06]} 14. a5 {[%emt 0:00:07]} Nf4 {[%emt 0:05:38]} 15. Ng3 {[%emt 0:01:16]} b5 {[%emt 0:05:11]} 16. axb6 {[%emt 0:03:33]} cxb6 {[%emt 0:00:02]} 17. d4 {[%emt 0:00:23]} b5 {[%emt 0:03:04]} 18. Bf1 {[%emt 0:02:06][%cal Rf3e5]} ({Reject} 18. Nxe5 Nxe5 19. Bxb5 Bd7 $17) 18... exd4 {[%emt 0:17:25] The position is equal.} 19. Rxe8+ {[%emt 0:00:12]} Qxe8 {[%emt 0:00:01]} 20. Nxd4 {[%emt 0:00:05]} Rd7 {[%emt 0:00:32]} 21. Qf3 {[%emt 0:00:11]} Nxd4 {[%emt 0:00:34]} 22. Qxf4 {[%emt 0:00:05]} Nb3 {[%emt 0:04:43]} 23. Ra3 {[%emt 0:00:24]} Nd2 {[%emt 0:03:21] [#] Threatens to win with ...Nxf1.} 24. Ra1 {[%emt 0:25:01]} Nb3 {[%emt 0:02:20]} 25. Ra3 {[%emt 0:06:38]} Nd2 {[%emt 0:04:50] aiming for ...Nxf1.} 26. Ra1 {[%emt 0:00:15]} Nb3 {[%emt 0:02:51] Weighted Error Value: White=0.06 (flawless) /Black=0.07 (flawless)} 1/2-1/2

[Event "European Women-ch 2023"]
[Site "Petrovac"]
[Date "2023.03.27"]
[Round "9.13"]
[White "Vidic, Teja"]
[Black "Karaivanova, Petya"]
[Result "1/2-1/2"]
[ECO "A13"]
[WhiteElo "2097"]
[BlackElo "1875"]
[Annotator "TA"]
[PlyCount "97"]
[EventDate "2023.03.15"]
[EventType "swiss"]
[EventCountry "MNE"]
[SourceTitle "playchess.com"]
[Source "ChessBase"]
[SourceQuality "1"]
[TimeControl "40/5400+30:1800+30"]

{[%evp 15,97,22,24,9,22,-30,-27,-47,2,-64,-58,-71,-65,-70,-48,-63,-50,-52,-54,-44,-39,-75,-42,-62,-40,-81,-81,-77,30,18,15,25,37,0,0,-83,-78,-134,-139,-114,-109,-107,-108,-115,-68,-68,-68,-60,-68,-108,-108,-108,-33,-108,-16,-10,0,0,0,0,0,0,0,0,0,0,0,0,0,0,0,0,0,0,0,0,0,0,0,0,0,0,11,0]} 1. Nf3 {[%emt 0:00:03]} d5 {[%emt 0:01:03]} 2. c4 {[%emt 0:00:06]} e6 {[%emt 0:00:08]} 3. b3 {[%emt 0:00:06]} Nf6 {[%emt 0:00:10]} 4. g3 {[%emt 0:00:06]} c6 {[%emt 0:00:52]} 5. Bg2 {[%emt 0:00:19]} Bd6 {[%emt 0:01:25]} 6. Bb2 {[%emt 0:02:38]} Nbd7 {[%emt 0:00:30]} 7. O-O {[%emt 0:00:35]} Qe7 {[%emt 0:01:18]} 8. d3 {[%emt 0:01:34]} O-O {[%emt 0:03:17]} 9. a3 {[%emt 0:02:47] A13: English Opening: 1...e6.} e5 {[%emt 0:02:25] [#]} 10. b4 $146 {[%emt 0:01:39]} ({White should play} 10. Nh4) ({Predecessor:} 10. cxd5 cxd5 11. Nc3 a6 12. b4 Nb6 13. Nd2 Be6 14. Na4 Nxa4 15. Qxa4 Bd7 16. Qb3 Be6 {1-0 Ianov,V (2381)-Harmatosi,J (2258) Zalakaros op 24th 2005 (4)}) 10... a5 $11 {[%emt 0:03:07]} 11. b5 {[%emt 0:01:30] Black has an edge.} dxc4 {[%emt 0:05:25]} (11... cxb5 $15 12. cxb5 b6) 12. dxc4 {[%emt 0:02:31]} (12. bxc6 $11 bxc6 13. Qc2) 12... cxb5 $15 {[%emt 0:01:23]} 13. cxb5 {[%emt 0:00:06]} Nb6 {[%emt 0:04:00]} 14. Nbd2 {[%emt 0:09:45]} Bf5 {[%emt 0:09:37][%cal Bc8f5,Bf5d7,Bd7g4][%mdl 32]} (14... Rd8 $5 {[%cal Re5e4]}) 15. e4 {[%emt 0:07:14]} Bd7 {[%emt 0:14:17]} (15... Nxe4 16. Nh4 $16) (15... Bxe4 16. Nxe4 Nxe4 17. Nh4 Nxf2 18. Kxf2 $16 (18. Rxf2 Bc5 $14)) 16. a4 {[%emt 0:00:08]} Rac8 {[%emt 0:00:16]} 17. Qb1 {[%emt 0:06:24]} Rfd8 {[%emt 0:03:12]} 18. Rd1 {[%emt 0:05:40]} Bg4 {[%emt 0:14:02]} (18... Ne8 $5 {[%cal Rf7f6]}) 19. h3 {[%emt 0:00:17]} Bh5 {[%emt 0:00:58]} 20. g4 {[%emt 0:11:50]} Bg6 {[%emt 0:00:34]} 21. Nh4 {[%emt 0:00:08]} Nfd7 {[%emt 0:05:17]} ({Black should try} 21... Bb4 $17 22. Nxg6 hxg6) 22. Nf5 $1 $11 {[%emt 0:01:25]} Bxf5 {[%emt 0:00:44]} 23. exf5 {[%emt 0:00:06]} Nc5 {[%emt 0:01:49]} 24. Ne4 {[%emt 0:07:10]} (24. Bc3 $5 {[%cal Rc3a5]}) 24... Nbxa4 {[%emt 0:08:02]} 25. Nxc5 {[%emt 0:19:34]} (25. Rxd6 $11 {keeps the balance.} Rxd6 26. Nxd6 Qxd6 27. Bxb7 Nxb7 28. Rxa4) 25... Nxb2 {[%emt 0:09:25]} 26. Qxb2 {[%emt 0:00:06]} (26. Nxb7 $142 Nxd1 27. Qxd1) 26... Bxc5 $17 {[%emt 0:00:16]} (26... Rxc5 27. Rxa5 Rcc8 28. Qe2 $11) 27. Rxd8+ {[%emt 0:00:09]} Rxd8 {[%emt 0:00:02]} 28. Rxa5 {[%emt 0:00:49]} e4 {[%emt 0:05:55] [#] White must now prevent ...e3.} (28... h5 {keeps more tension.} 29. Qc2 hxg4 30. hxg4 Qh4) 29. Qe2 {[%emt 0:03:29] White is weak on the dark squares} e3 {[%emt 0:03:02]} (29... Qe5 $17 {[%cal Oh7h5] And now ...h5! would win.} 30. Bxe4 h6) 30. fxe3 $15 {[%emt 0:00:04]} Bxe3+ {[%emt 0:00:05]} ({But not} 30... Qxe3+ 31. Qxe3 Bxe3+ 32. Kf1 $11) 31. Kh1 {[%emt 0:00:05]} h6 {[%emt 0:02:03]} 32. Ra1 {[%emt 0:00:31]} Rd2 {[%emt 0:00:44]} 33. Qf3 {[%emt 0:00:24]} Bd4 {[%emt 0:00:06]} ({Worse is} 33... Qe5 34. Re1 Rd3 35. f6 $15 (35. Qxb7 $2 {too greedy.} Qg3 $19)) (33... Bb6 $17 {...Bc7 would be deadly.} 34. Qf4 Re2) 34. Rc1 {[%emt 0:08:09] [#]} (34. Qe4 $15 Qc7 35. Rf1) 34... b6 {[%emt 0:00:58]} (34... Bb6 $1 $17 {Threatens to win with ...Qe5.} 35. Qf4 Qe2) 35. Qe4 $11 {[%emt 0:00:05] The position is equal.} Qxe4 {[%emt 0:00:39]} (35... Qd6 $2 36. Rc8+ $18) 36. Bxe4 {[%emt 0:00:06][%mdl 4096] Endgame KRB-KRB} Bc5 {[%emt 0:00:38]} 37. Ra1 {[%emt 0:01:51]} Re2 {[%emt 0:00:36]} 38. Ra8+ {[%emt 0:01:10]} Kh7 {[%emt 0:00:13]} 39. Bd5 {[%emt 0:00:07]} Re7 {[%emt 0:00:30]} 40. Kg2 {[%emt 0:00:00]} g6 {[%emt 0:00:00]} 41. fxg6+ {[%emt 0:05:56]} fxg6 {[%emt 0:03:13]} 42. h4 {[%emt 0:00:07]} Kg7 {[%emt 0:05:46]} 43. Rc8 {[%emt 0:02:38]} Re5 {[%emt 0:03:00]} 44. Rc7+ {[%emt 0:02:09]} Re7 {[%emt 0:00:07]} 45. Rc6 {[%emt 0:00:27]} Re5 {[%emt 0:06:24]} 46. Bf3 {[%emt 0:06:52]} Re3 {[%emt 0:02:41]} 47. h5 {[%emt 0:02:14]} gxh5 {[%emt 0:00:29]} 48. gxh5 {[%emt 0:00:05]} Re5 {[%emt 0:00:50]} 49. Rc7+ {[%emt 0:05:28] Weighted Error Value: White=0.20 (precise) /Black=0.14 (very precise)} 1/2-1/2